lending/lending_fUSD_20260310
["ID","MTS","AMOUNT","RATE_DAILY","PERIOD"]
[408104617,1773149432974,-500.0,0.00016105,2]
[408104618,1773149432984,-500.0,0.00016105,2]
[408104619,1773149432993,-500.0,0.00016105,2]
[408104620,1773149433003,-500.0,0.00016105,2]
[408104621,1773149433012,-500.0,0.00016105,2]
[408104622,1773149433021,-500.0,0.00016105,2]
[408104623,1773149433030,-500.0,0.00016105,2]
[408104624,1773149433039,-500.0,0.00016105,2]
[408104625,1773149433049,-500.0,0.00016105,2]
[408104626,1773149433058,-500.0,0.00016105,2]
[408104627,1773149433068,-500.0,0.00016105,2]
[408104628,1773149433077,-500.0,0.00016105,2]
[408104629,1773149433087,-500.0,0.00016105,2]
[408104630,1773149433096,-500.0,0.00016105,2]
[408104631,1773149433105,-500.0,0.00016105,2]
[408104632,1773149433115,-500.0,0.00016105,2]
[408104633,1773149433125,-500.0,0.00016105,2]
[408104634,1773149433134,-500.0,0.00016105,2]
[408104635,1773149433143,-500.0,0.00016105,2]
[408104636,1773149433153,-500.0,0.00016105,2]
[408104637,1773149433164,-500.0,0.00016105,2]
[408104638,1773149433174,-500.0,0.00016105,2]
[408104639,1773149433183,-500.0,0.00016105,2]
[408104640,1773149433193,-500.0,0.00016105,2]
[408104641,1773149433203,-500.0,0.00016105,2]
[408104642,1773149433213,-500.0,0.00016105,2]
[408104643,1773149433222,-500.0,0.00016105,2]
[408104644,1773149433232,-500.0,0.00016105,2]
[408104645,1773149433241,-500.0,0.00016105,2]
[408104646,1773149433251,-500.0,0.00016105,2]
[408104647,1773149433261,-500.0,0.00016105,2]
[408104648,1773149433271,-500.0,0.00016105,2]
[408104649,1773149433280,-500.0,0.00016105,2]
[408104650,1773149433289,-500.0,0.00016105,2]
[408104651,1773149433299,-500.0,0.00016105,2]
[408104652,1773149433308,-500.0,0.00016105,2]
[408104653,1773149433318,-500.0,0.00016105,2]
[408104654,1773149433328,-500.0,0.00016105,2]
[408104655,1773149433337,-500.0,0.00016105,2]
[408104656,1773149433346,-500.0,0.00016105,2]
[408104657,1773149433355,-500.0,0.00016105,2]
[408104658,1773149433364,-500.0,0.00016105,2]
[408104659,1773149433373,-500.0,0.00016105,2]
[408104660,1773149433382,-500.0,0.00016105,2]
[408104661,1773149433392,-500.0,0.00016105,2]
[408104662,1773149433401,-500.0,0.00016105,2]
[408104663,1773149433412,-500.0,0.00016105,2]
[408104664,1773149433421,-500.0,0.00016105,2]
[408104665,1773149433430,-500.0,0.00016105,2]
[408104666,1773149433440,-500.0,0.00016105,2]
[408104667,1773149433449,-500.0,0.00016105,2]
[408104668,1773149433459,-500.0,0.00016105,2]
[408104669,1773149433768,-500.0,0.00016105,2]
[408104670,1773149433778,-500.0,0.00016105,2]
[408104671,1773149433788,-500.0,0.00016105,2]
[408104672,1773149433799,-500.0,0.00016105,2]
[408104673,1773149433812,-500.0,0.00016105,2]
[408104674,1773149433821,-500.0,0.00016105,2]
[408104675,1773149433830,-500.0,0.00016105,2]
[408104676,1773149433840,-500.0,0.00016105,2]
[408104677,1773149433850,-500.0,0.00016105,2]
[408104678,1773149433859,-500.0,0.00016105,2]
[408104679,1773149433867,-500.0,0.00016105,2]
[408104680,1773149433878,-500.0,0.00016105,2]
[408104681,1773149433887,-500.0,0.00016105,2]
[408104682,1773149433896,-218.68326409,0.00016105,2]
[408104683,1773149433906,-500.0,0.00016105,2]
[408104684,1773149433915,-500.0,0.00016105,2]
[408104685,1773149433924,-500.0,0.00016105,2]
[408104686,1773149433933,-500.0,0.00016105,2]
[408104687,1773149433942,-500.0,0.00016105,2]
[408104688,1773149433950,-500.0,0.00016105,2]
[408104689,1773149433960,-500.0,0.00016105,2]
[408104690,1773149433969,-500.0,0.00016105,2]
[408104691,1773149433979,-500.0,0.00016105,2]
[408104692,1773149433988,-500.0,0.00016105,2]
[408104693,1773149433997,-500.0,0.00016105,2]
[408104694,1773149434006,-500.0,0.00016105,2]
[408104695,1773149434015,-500.0,0.00016105,2]
[408104696,1773149434024,-500.0,0.00016105,2]
[408104697,1773149434034,-366.97722411,0.00016107,2]
[408104698,1773149434047,-251.93358459,0.00016107,2]
[408104699,1773149434056,-500.0,0.00016107,2]
[408104700,1773149434065,-308.16279385,0.00016107,2]
[408104701,1773149434074,-500.0,0.00016107,2]
[408104702,1773149434084,-1065.43137329,0.00016107,5]
[408104703,1773149434093,-1065.43137329,0.00016107,5]
[408104704,1773149434103,-1065.43137328,0.00016107,5]
[408104705,1773149434112,-201.46220607,0.00016107,5]
[408104706,1773149434122,-1483.15594493,0.00016107,5]
[408104707,1773149434131,-500.0,0.00016107,2]
[408104708,1773149434140,-500.0,0.00016107,2]
[408104709,1773149434150,-500.0,0.00016107,2]
[408104710,1773149434160,-500.0,0.00016107,2]
[408104711,1773149434170,-500.0,0.00016107,2]
[408104712,1773149434180,-500.0,0.00016107,2]
[408104713,1773149434190,-514.75306544,0.00016107,2]
[408104714,1773149434199,-500.0,0.00016107,2]
[408104715,1773149434209,-1300.33,0.00016107,2]
[408104716,1773149434219,-500.0,0.00016173,2]
[408104717,1773149434228,-500.0,0.00016173,2]
[408104718,1773149434238,-234.81595298,0.00016173,2]
[408104719,1773149434247,-500.0,0.00016173,2]
[408104720,1773149434257,-500.0,0.00016173,2]
[408104721,1773149434266,-500.0,0.00016173,2]
[408104722,1773149434276,-500.0,0.00016173,2]
[408104723,1773149434286,-391.0,0.00016185,2]
[408104724,1773149434296,-1883.0,0.00016217,2]
[408104725,1773149434305,-217.0,0.00016218,2]
[408104726,1773149434314,-250.0,0.0001628,2]
[408104727,1773149434323,-500.0,0.0001628,2]
[408104728,1773149434333,-194.57847078,0.0001628,2]
[408104729,1773149434342,-1680.0,0.00016291,2]
[408104730,1773149434351,-500.0,0.00016292,2]
[408104731,1773149434361,-401.37850293,0.00016292,2]
[408104732,1773149434370,-500.0,0.00016292,2]
[408104733,1773149434380,-500.0,0.00016292,2]
[408104734,1773149434389,-196.82,0.00016292,2]
[408104735,1773149434399,-500.0,0.00016292,2]
[408104736,1773149434409,-500.0,0.00016292,2]
[408104737,1773149434418,-500.0,0.00016292,2]
[408104738,1773149434427,-500.0,0.00016292,2]
[408104739,1773149434437,-2106.48,0.00016292,2]
[408104740,1773149434446,-2106.48,0.00016292,2]
[408104741,1773149434456,-2106.48,0.00016292,2]
[408104742,1773149434465,-2106.48,0.00016292,2]
[408104743,1773149434475,-2106.48,0.00016292,2]
[408104744,1773149434484,-2106.48,0.00016292,2]
[408104745,1773149434494,-2106.48,0.00016292,2]
[408104746,1773149434504,-2106.48,0.00016292,2]
[408104747,1773149434513,-2106.48,0.00016292,2]
[408104748,1773149434523,-2106.48,0.00016292,2]
[408104749,1773149434533,-2106.48,0.00016292,2]
[408104750,1773149434543,-500.0,0.00016292,2]
[408104751,1773149434552,-153.03249614,0.00016292,2]
[408104752,1773149434562,-500.0,0.00016292,2]
[408104753,1773149434572,-500.0,0.00016292,2]
[408104754,1773149434581,-500.0,0.00016292,2]
[408104755,1773149434594,-500.0,0.00016292,2]
[408104756,1773149434604,-500.0,0.00016292,2]
[408104757,1773149434614,-500.0,0.00016292,2]
[408104758,1773149434623,-500.0,0.00016292,2]
[408104759,1773149434633,-500.0,0.00016292,2]
[408104760,1773149434643,-500.0,0.00016292,2]
[408104761,1773149434654,-500.0,0.00016292,2]
[408104762,1773149434664,-500.0,0.00016292,2]
[408104763,1773149434673,-583.0,0.00016296,2]
[408104764,1773149434683,-431.06188293,0.00016307,2]
[408104765,1773149434693,-600.0,0.00016307,2]
[408104766,1773149434703,-253.12,0.00016341,2]
[408104767,1773149434713,-1300.33,0.00016381,2]
[408104768,1773149434722,-645.53,0.00016438,2]
[408104769,1773149434731,-645.53,0.00016438,2]
[408104770,1773149434741,-645.53,0.00016438,2]
[408104771,1773149434751,-645.53,0.00016438,2]
[408104772,1773149434760,-645.53,0.00016438,2]
[408104773,1773149434770,-645.53,0.00016438,2]
[408104774,1773149434779,-645.53,0.00016438,2]
[408104775,1773149434789,-645.53,0.00016438,2]
[408104776,1773149434801,-645.53,0.00016438,2]
[408104777,1773149434810,-645.53,0.00016438,2]
[408104778,1773149434820,-9999.33256262,0.00016475,2]
[408104779,1773149434830,-166.66,0.00016507,2]
[408104780,1773149434842,-310.0,0.00016509,2]
[408104781,1773149434852,-200.0,0.00016592,2]
[408104782,1773149434861,-510.0,0.00016626,2]
[408104783,1773149434871,-1300.33,0.00016655,2]
[408104784,1773149434884,-500.0,0.00016721,2]
[408104785,1773149434894,-1000.0,0.00016721,2]
[408104786,1773149434903,-1000.0,0.00016721,2]
[408104787,1773149434913,-1000.0,0.00016721,2]
[408104788,1773149434922,-1000.0,0.00016721,2]
[408104789,1773149434931,-1000.0,0.00016721,2]
[408104790,1773149434940,-213.01,0.00016807,2]
[408104791,1773149434949,-399.8482666,0.00016822,2]
[408104792,1773149434958,-9999.33256262,0.00016899,2]
[408104793,1773149434968,-644.97,0.00016912,2]
[408104794,1773149434977,-644.97,0.00016912,2]
[408104795,1773149434989,-644.97,0.00016912,2]
[408104796,1773149434998,-3715.38,0.00016922,2]
[408104797,1773149435008,-299.99,0.00016922,4]
[408104798,1773149435017,-6029.74,0.00016922,2]
[408104799,1773149435026,-25999.79077973,0.00016922,2]
[408104800,1773149435042,-16806.25038811,0.00016922,2]
[408104801,1773149435053,-15168.71071971,0.00016922,2]
[408104808,1773149437550,-1458.74212105,0.00016922,2]
[408104809,1773149437666,-21207.1459914,0.00016922,2]
[408104810,1773149437676,-3198.48,0.00016922,2]
[408104811,1773149437687,-17930.59,0.00016922,2]
[408104812,1773149437696,-6594.12,0.00016922,2]
[408104813,1773149437706,-150.99,0.00016922,2]
[408104814,1773149437717,-9999.99,0.00016922,2]
[408104815,1773149437727,-7995.06,0.00016922,2]
[408104816,1773149437736,-6272.28,0.00016922,2]
[408104817,1773149437745,-9999.99,0.00016922,2]
[408104818,1773149437756,-3428.03,0.00016922,2]
[408104819,1773149437766,-9999.99,0.00016922,2]
[408104820,1773149437779,-29506.61,0.00016922,2]
[408104821,1773149437789,-3041.69,0.00016922,2]
[408104822,1773149437801,-999.99,0.00016922,2]
[408104823,1773149437810,-1300.33,0.00016929,2]
[408104824,1773149437820,-2106.48,0.00016999,2]
[408104825,1773149437829,-500.0,0.00016999,2]
[408104826,1773149437838,-300.0,0.00017,2]
[408104827,1773149437848,-510.0,0.00017,2]
[408104828,1773149437857,-623.291134,0.0001717,7]
[408104829,1773149437866,-1300.33,0.00017203,2]
[408104830,1773149437877,-1500.0,0.00017268,2]
[408104831,1773149437886,-1526.17740878,0.00017268,2]
[408104832,1773149437895,-283.18830784,0.00017268,2]
[408104833,1773149437904,-1500.0,0.00017268,2]
[408104834,1773149437915,-1500.0,0.00017268,2]
[408104836,1773149437925,-9999.33256262,0.00017324,2]
[408104837,1773149437934,-166.66,0.00017368,2]
[408104838,1773149437943,-1300.33,0.00017477,2]
[408104839,1773149437952,-500.0,0.00017479,2]
[408104840,1773149437962,-150.0,0.00017492,2]
[408104842,1773149437971,-500.0,0.00017596,2]
[408104844,1773149437980,-213.01,0.00017647,2]
[408104846,1773149437989,-500.0,0.00017651,2]
[408104848,1773149437999,-500.0,0.00017706,2]
[408104850,1773149438009,-253.12,0.00017711,2]
[408104852,1773149438018,-645.53,0.00017727,2]
[408104854,1773149438027,-9999.33256262,0.00017749,2]
[408104856,1773149438036,-1300.33,0.00017751,2]
[408104858,1773149438045,-500.0,0.0001776,2]
[408104860,1773149438054,-800.0,0.00017808,2]
[408104862,1773149438063,-644.97,0.00017814,2]
[408104864,1773149438073,-500.0,0.00017815,2]
[408104866,1773149438082,-2000.0,0.00017816,2]
[408104868,1773149438092,-2000.0,0.00017816,2]
[408104870,1773149438101,-2000.0,0.00017816,2]
[408104872,1773149438110,-1000.0,0.00017824,2]
[408104874,1773149438119,-695.39793187,0.00017824,2]
[408104876,1773149438129,-250.0,0.00017824,2]
[408104878,1773149438139,-250.0,0.00017824,2]
[408104880,1773149438148,-250.0,0.00017824,2]
[408104883,1773149438161,-1128.72123701,0.00017824,2]
[408104885,1773149438170,-250.0,0.00017824,2]
[408104887,1773149438180,-250.0,0.00017824,2]
[408104889,1773149438189,-1500.0,0.00017824,2]
[408104891,1773149438198,-250.0,0.00017824,2]
[408104893,1773149438208,-1500.0,0.00017824,2]
[408104895,1773149438219,-250.0,0.00017824,2]
[408104897,1773149438228,-1592.44280863,0.00017824,2]
[408104899,1773149438238,-250.0,0.00017824,2]
[408104901,1773149438248,-10000.0,0.00017824,2]
[408104903,1773149438257,-578.20924308,0.00017824,2]
[408104905,1773149438266,-7573.58165349,0.00017824,2]
[408104907,1773149438275,-500.0,0.00017824,2]
[408104909,1773149438284,-151.0,0.00017824,2]
[408104911,1773149438294,-200.0,0.00017824,2]
[408104913,1773149438306,-250.0,0.00017824,2]
[408104915,1773149438316,-250.0,0.00017824,2]
[408104917,1773149438326,-174.61919141,0.00017824,2]
[408104919,1773149438336,-250.0,0.00017824,2]
[408104921,1773149438346,-1000.0,0.00017824,2]
[408104923,1773149438355,-250.0,0.00017824,2]
[408104925,1773149438364,-773.73733787,0.00017824,2]
[408104927,1773149438373,-250.0,0.00017824,2]
[408104929,1773149438383,-250.0,0.00017824,2]
[408104931,1773149438392,-250.0,0.00017824,2]
[408104933,1773149438401,-250.0,0.00017824,2]
[408104935,1773149438413,-250.0,0.00017824,2]
[408104937,1773149438423,-250.0,0.00017824,2]
[408104939,1773149438433,-256.00624791,0.00017824,2]
[408104941,1773149438442,-743.50770149,0.00017824,2]
[408104943,1773149438451,-266.11523531,0.00017824,2]
[408104945,1773149438461,-1500.0,0.00017824,2]
[408104948,1773149438470,-1500.0,0.00017824,2]
[408104950,1773149438480,-668.65185757,0.00017824,2]
[408104952,1773149438489,-1500.0,0.00017824,2]
[408104954,1773149438498,-1500.0,0.00017824,2]
[408104956,1773149438507,-1500.0,0.00017824,2]
[408104958,1773149438518,-1500.0,0.00017824,2]
[408104960,1773149438527,-1041.02516385,0.00017824,2]
[408104962,1773149438536,-284.23461193,0.00017824,2]
[408104964,1773149438545,-262.90206542,0.00017824,2]
[408104966,1773149438555,-500.0,0.00017835,2]
[408104968,1773149438565,-866.0,0.00017835,2]
[408104970,1773149438575,-300.0,0.0001787,2]
[408104972,1773149438584,-151.0,0.00017879,2]
[408104974,1773149438593,-2106.48,0.00017889,2]
[408104976,1773149438603,-2063.01807231,0.000179,2]
[408104977,1773149438619,-2351.0,0.0001792,2]
[408104978,1773149438628,-151.0,0.00017934,2]
[408104979,1773149438638,-702.20010813,0.00017961,2]
[408104980,1773149438647,-151.0,0.00017989,2]
[408104981,1773149438656,-1300.33,0.00018025,2]
[408104982,1773149438671,-151.0,0.00018044,2]
[408104983,1773149438680,-151.0,0.00018099,2]
[408104984,1773149438689,-151.0,0.00018154,2]
[408104985,1773149438698,-9999.33256262,0.00018173,2]
[408104986,1773149438707,-151.0,0.00018209,2]
[408104987,1773149438716,-166.66,0.00018228,2]
[408104988,1773149438726,-2482.21,0.00018234,2]
[408104989,1773149438735,-151.0,0.00018264,2]
[408104990,1773149438744,-1300.33,0.00018299,2]
[408104991,1773149438752,-151.0,0.00018319,2]
[408104992,1773149438761,-399.84826658,0.00018347,2]
[408104993,1773149438770,-2459.11608175,0.00018364,2]
[408104994,1773149438780,-911.35508251,0.00018364,2]
[408104995,1773149438789,-2500.0,0.00018364,2]
[408104996,1773149438799,-1000.0,0.00018372,2]
[408104997,1773149438811,-200.0,0.00018372,2]
[408104998,1773149438820,-181.08010149,0.00018372,2]
[408104999,1773149438829,-869.39421668,0.00018372,2]
[408105000,1773149438838,-485.4185,0.00018372,2]
[408105001,1773149438847,-272.62944185,0.00018372,2]
[408105002,1773149438856,-288.79400444,0.00018374,2]
[408105003,1773149438865,-510.0,0.000184,3]
[408105004,1773149438874,-213.01,0.00018488,2]
[408105005,1773149438884,-1300.33,0.00018573,2]
[408105006,1773149438893,-9999.33256262,0.00018598,2]
[408105007,1773149438902,-500.0,0.0001863,2]
[408105008,1773149438914,-500.0,0.00018685,7]
[408105009,1773149438923,-644.97,0.0001877,2]
[408105010,1773149438932,-486.82,0.00018794,2]
[408105011,1773149438954,-486.83,0.00018794,2]
[408105012,1773149438964,-1300.33,0.00018847,2]
[408105014,1773149438974,-3026.15855569,0.000189,2]
[408105016,1773149438983,-3000.0,0.00018912,2]
[408105018,1773149438993,-1000.0,0.0001892,2]
[408105020,1773149439002,-200.0,0.0001892,2]
[408105022,1773149439012,-187.78006525,0.0001892,2]
[408105023,1773149439022,-253.17468899,0.0001892,2]
[408105024,1773149439032,-168.0,0.0001895,2]
[408105025,1773149439041,-500.0,0.00018959,7]
[408105026,1773149439051,-200.0,0.0001897,2]
[408105027,1773149439060,-150.0,0.0001899,2]
[408105028,1773149439069,-4190.0,0.00019,2]
[408105029,1773149439078,-400.0,0.00019,3]
[408105030,1773149439088,-9999.33256262,0.00019023,2]
[408105031,1773149439097,-158.83,0.00019115,2]
[408105032,1773149439106,-1300.36410102,0.00019121,2]
[408105033,1773149439115,-231.0,0.00019137,2]
[408105034,1773149439125,-222.9,0.00019156,2]
[408105035,1773149439134,-1342.03,0.00019178,2]
[408105036,1773149439143,-1342.03,0.00019178,2]
[408105037,1773149439153,-1342.03,0.00019178,2]
[408105038,1773149439165,-1342.03,0.00019178,2]
[408105039,1773149439174,-1342.03,0.00019178,2]
[408105040,1773149439183,-1342.03,0.00019178,2]
[408105041,1773149439193,-1342.03,0.00019178,2]
[408105042,1773149439202,-1342.03,0.00019178,2]
[408105043,1773149439211,-1342.03,0.00019178,2]
[408105044,1773149439221,-1342.03,0.00019178,2]
[408105045,1773149439230,-1342.03,0.00019178,2]
[408105046,1773149439239,-1342.03,0.00019178,2]
[408105047,1773149439248,-787.0,0.00019178,2]
[408105048,1773149439259,-558.0,0.00019178,2]
[408105049,1773149439268,-500.0,0.00019193,2]
[408105050,1773149439277,-500.0,0.00019233,7]
[408105051,1773149439286,-1342.03,0.00019292,2]
[408105052,1773149439295,-2106.48,0.00019303,2]
[408105053,1773149439304,-213.01,0.00019328,2]
[408105054,1773149439313,-500.0,0.00019337,2]
[408105055,1773149439322,-17534.5,0.00019339,2]
[408105057,1773149439331,-2798.92,0.00019339,2]
[408105059,1773149439341,-658.9,0.00019405,2]
[408105061,1773149439350,-9999.33256262,0.00019447,2]
[408105062,1773149439359,-268.96748512,0.00019452,2]
[408105063,1773149439368,-1652.00387375,0.0001946,2]
[408105064,1773149439377,-1000.0,0.00019468,2]
[408105065,1773149439387,-263.03544777,0.00019468,2]
[408105066,1773149439396,-155.0,0.000195,2]
[408105067,1773149439406,-500.0,0.00019507,7]
[408105068,1773149439416,-1121.57296722,0.00019572,2]
[408105069,1773149439426,-940.73825397,0.00019573,2]
[408105070,1773149439435,-140960.4537454,0.00019599,2]
[408105071,1773149439444,-3136.3381502,0.00019599,2]
[408105072,1773149439454,-26935.3854361,0.00019599,2]
[408105073,1773149439463,-250.0,0.00019604,3]
[408105074,1773149439472,-168.0,0.00019656,2]
[408105075,1773149439482,-168.0,0.0001971,2]
[408105076,1773149439491,-3292.0,0.00019712,2]
[408105077,1773149439500,-787.0,0.00019726,2]
[408105078,1773149439509,-500.0,0.00019781,7]
[408105079,1773149439518,-250.0,0.00019783,2]
[408105080,1773149439528,-510.0,0.000198,4]
[408105081,1773149439537,-31463.33217557,0.000198,2]
[408105082,1773149439547,-654.0,0.00019838,2]
[408105083,1773149439557,-520.0,0.00019838,2]
[408105084,1773149439566,-168.0,0.00019853,2]
[408105085,1773149439575,-2106.48,0.00019868,2]
[408105086,1773149439586,-32933.015,0.00019871,2]
[408105087,1773149439596,-1000.0,0.00019871,2]
[408105088,1773149439606,-500.0,0.00019871,2]
[408105089,1773149439616,-702.20010813,0.00019872,2]
[408105090,1773149439627,-9999.33256262,0.00019872,2]
[408105091,1773149439637,-399.84826658,0.00019872,2]
[408105092,1773149439647,-5633.51467026,0.00019872,2]
[408105093,1773149439656,-439.0,0.000199,7]
[408105094,1773149439667,-860.25915927,0.000199,2]
[408105095,1773149439677,-1213.0,0.00019901,2]
[408105097,1773149439687,-922.0,0.00019901,2]
[408105099,1773149439697,-619.0,0.00019901,2]
[408105101,1773149439707,-168.0,0.00019918,2]
[408105103,1773149439717,-221.911124,0.00019958,2]
[408105104,1773149439727,-268.17724042,0.00019962,2]
[408105105,1773149439744,-268.17724042,0.00019962,2]
[408105107,1773149439764,-2106.48,0.00019968,2]
[408105109,1773149439775,-2106.48,0.00019969,2]
[408105111,1773149439786,-2106.48,0.00019969,2]
[408105115,1773149440144,-785.0,0.00019969,2]
[408105116,1773149440154,-785.0,0.00019969,2]
[408105117,1773149440165,-785.0,0.00019969,2]
[408105118,1773149440174,-785.0,0.00019969,2]
[408105119,1773149440183,-785.0,0.00019969,2]
[408105120,1773149440192,-785.0,0.00019969,2]
[408105121,1773149440201,-785.0,0.00019969,2]
[408105122,1773149440210,-785.0,0.00019969,2]
[408105123,1773149440219,-785.0,0.00019969,2]
[408105124,1773149440228,-785.0,0.00019969,2]
[408105125,1773149440237,-785.0,0.00019969,2]
[408105126,1773149440247,-785.0,0.00019969,2]
[408105127,1773149440256,-785.0,0.00019969,2]
[408105128,1773149440264,-785.0,0.00019969,2]
[408105129,1773149440274,-785.0,0.00019969,2]
[408105130,1773149440283,-785.0,0.00019969,2]
[408105131,1773149440293,-785.0,0.00019969,2]
[408105132,1773149440302,-785.0,0.00019969,2]
[408105133,1773149440311,-785.0,0.00019969,2]
[408105134,1773149440320,-785.0,0.00019969,2]
[408105135,1773149440329,-785.0,0.00019969,2]
[408105136,1773149440338,-785.0,0.00019969,2]
[408105137,1773149440347,-785.0,0.00019969,2]
[408105138,1773149440356,-785.18,0.00019969,2]
[408105139,1773149440365,-500.0,0.00019969,2]
[408105140,1773149440375,-500.0,0.00019969,2]
[408105141,1773149440385,-500.0,0.00019969,2]
[408105142,1773149440394,-1342.03,0.00019969,2]
[408105143,1773149440403,-700.0,0.00019969,2]
[408105144,1773149440414,-700.0,0.00019969,2]
[408105145,1773149440424,-700.0,0.00019969,2]
[408105146,1773149440433,-700.0,0.00019969,2]
[408105147,1773149440442,-700.0,0.00019969,2]
[408105148,1773149440451,-700.0,0.00019969,2]
[408105149,1773149440460,-700.0,0.00019969,2]
[408105150,1773149440469,-700.0,0.00019969,2]
[408105151,1773149440478,-700.0,0.00019969,2]
[408105152,1773149440488,-700.0,0.00019969,2]
[408105153,1773149440497,-472.38526539,0.00019969,2]
[408105154,1773149440506,-500.0,0.00019969,2]
[408105155,1773149440515,-500.0,0.00019969,2]
[408105156,1773149440525,-500.0,0.00019969,2]
[408105157,1773149440534,-243.10314305,0.00019969,2]
[408105158,1773149440544,-500.0,0.00019969,2]
[408105159,1773149440553,-500.0,0.00019969,2]
[408105160,1773149440562,-500.0,0.00019969,2]
[408105161,1773149440571,-500.0,0.00019969,2]
[408105162,1773149440580,-500.0,0.00019969,2]
[408105163,1773149440590,-484.97675001,0.00019969,2]
[408105164,1773149440599,-500.0,0.00019969,2]
[408105165,1773149440609,-2106.48,0.0001997,2]
[408105166,1773149440619,-2106.48,0.0001997,2]
[408105167,1773149440628,-2106.48,0.0001997,2]
[408105168,1773149440637,-2106.48,0.0001997,2]
[408105169,1773149440646,-2106.48,0.0001997,2]
[408105170,1773149440655,-2106.58208117,0.0001997,2]
[408105171,1773149440666,-301.02902775,0.0001997,2]
[408105172,1773149440675,-500.0,0.0001997,2]
[408105173,1773149440685,-500.0,0.0001997,2]
[408105174,1773149440695,-332.89690428,0.0001997,2]
[408105175,1773149440706,-1342.03,0.00019971,2]
[408105176,1773149440716,-1342.03,0.00019971,2]
[408105177,1773149440726,-1342.03,0.00019971,2]
[408105178,1773149440736,-1342.03,0.00019971,2]
[408105179,1773149440746,-1342.03,0.00019971,2]
[408105180,1773149440757,-1342.03,0.00019971,2]
[408105181,1773149440767,-1342.03,0.00019971,2]
[408105182,1773149440776,-1342.03,0.00019971,2]
[408105183,1773149440785,-1342.03,0.00019971,2]
[408105184,1773149440795,-1342.15042495,0.00019971,2]
[408105185,1773149440805,-645.53,0.00019971,2]
[408105186,1773149440815,-645.53,0.00019971,2]
[408105187,1773149440825,-645.53,0.00019971,2]
[408105188,1773149440834,-645.53,0.00019971,2]
[408105189,1773149440843,-645.53,0.00019971,2]
[408105190,1773149440856,-645.53,0.00019971,2]
[408105191,1773149440865,-645.53,0.00019971,2]
[408105192,1773149440876,-645.53,0.00019971,2]
[408105193,1773149440886,-645.53,0.00019971,2]
[408105194,1773149440896,-645.53,0.00019971,2]
[408105195,1773149440907,-645.53,0.00019971,2]
[408105196,1773149440917,-645.53,0.00019971,2]
[408105197,1773149440927,-645.70325655,0.00019971,2]
[408105198,1773149440937,-187.0,0.00019972,3]
[408105199,1773149440946,-151.0,0.00019972,3]
[408105200,1773149440956,-156.0,0.00019972,3]
[408105201,1773149440969,-635.94969435,0.00019972,2]
[408105202,1773149440979,-500.0,0.00019972,2]
[408105203,1773149440989,-1395.74,0.00019972,2]
[408105204,1773149440998,-521.45876953,0.00019972,2]
[408105205,1773149441007,-1395.74,0.00019972,2]
[408105206,1773149441016,-1395.74,0.00019972,2]
[408105207,1773149441025,-524.89473531,0.00019972,2]
[408105208,1773149441034,-1395.74,0.00019972,2]
[408105209,1773149441043,-747.21,0.00019972,2]
[408105210,1773149441052,-1395.74,0.00019972,2]